fUSD/lending_fUSD_20260122
["ID","MTS","AMOUNT","RATE_DAILY","PERIOD"]
[403022755,1769077837714,-792.92,0.00017472,2]
[403022757,1769077837723,-500.0,0.000175,6]
[403022759,1769077837732,-500.0,0.00017523,2]
[403022761,1769077837745,-2900.0,0.000176,6]
[403022763,1769077837754,-700.0,0.000176,6]
[403022765,1769077837767,-500.0,0.00017608,2]
[403022767,1769077837776,-500.0,0.00017608,2]
[403022769,1769077837786,-500.0,0.00017608,2]
[403022771,1769077837795,-500.0,0.00017608,2]
[403022773,1769077837804,-500.0,0.00017608,2]
[403022775,1769077837813,-500.0,0.00017608,2]
[403022777,1769077837822,-500.0,0.00017608,2]
[403022779,1769077837831,-176.58,0.00017643,2]
[403022781,1769077837840,-500.0,0.00017673,2]
[403022782,1769077837849,-500.0,0.00017673,2]
[403022783,1769077837859,-500.0,0.00017673,2]
[403022785,1769077837868,-500.0,0.00017673,2]
[403022787,1769077837877,-500.0,0.00017673,2]
[403022789,1769077837886,-540.54661536,0.00017673,2]
[403022791,1769077837895,-509.50904316,0.00017673,2]
[403022793,1769077837904,-500.0,0.00017699,2]
[403022795,1769077837914,-162.0,0.00017699,2]
[403022796,1769077837923,-4400.0,0.000177,6]
[403022797,1769077837931,-1000.0,0.000177,6]
[403022798,1769077837940,-792.92,0.00017746,2]
[403022799,1769077837949,-500.0,0.00017754,2]
[403022800,1769077837958,-5800.0,0.000178,6]
[403022801,1769077837967,-1300.0,0.000178,6]
[403022802,1769077837976,-500.0,0.00017809,2]
[403022803,1769077837986,-1000.32393849,0.0001786,2]
[403022804,1769077837995,-500.0,0.00017863,2]
[403022805,1769077838004,-340.0,0.00017878,2]
[403022806,1769077838013,-15055.0,0.0001789,2]
[403022807,1769077838022,-43354.97053025,0.0001789,2]
[403022808,1769077838031,-7300.0,0.000179,6]
[403022809,1769077838041,-193.2322498,0.000179,3]
[403022810,1769077838050,-439.88445026,0.000179,2]
[403022811,1769077838060,-3671.42970232,0.000179,2]
[403022812,1769077838069,-200.0,0.000179,6]
[403022813,1769077838078,-497.6192211,0.000179,2]
[403022814,1769077838088,-177.73683657,0.00017918,2]
[403022815,1769077838097,-150.0,0.00017973,2]
[403022816,1769077838105,-150.0,0.00017973,2]
[403022817,1769077838114,-1926.4181119,0.0001799,2]
[403022818,1769077838122,-1926.4181119,0.0001799,2]
[403022819,1769077838130,-150.0,0.00017999,2]
[403022820,1769077838139,-150.0,0.00017999,2]
[403022821,1769077838147,-150.0,0.00017999,2]
[403022822,1769077838155,-249.22843217,0.00017999,2]
[403022823,1769077838164,-2971215.31333888,0.00018,2]
[403022824,1769077838264,-338577.78306776,0.00018,2]
[403022825,1769077838275,-1618.18754719,0.00018,2]
[403022826,1769077838286,-8460.0,0.00018,2]
[403022827,1769077838298,-56033.54113682,0.00018,2]
[403022828,1769077839861,-412.8989822,0.00018,2]
[403022829,1769077839873,-332.9023218,0.00018,2]
[403022830,1769077839885,-1392.10538075,0.00018,2]
[403022882,1769077842566,-16374.90182027,0.00017309,2]
[403022892,1769077845515,-151.0,0.00017176,2]
[403022893,1769077845524,-67.85683122,0.00017309,2]
[403022894,1769077845534,-81.3772615,0.000179,2]
[403022918,1769078660990,545.63,0.0001,2]
[403022919,1769078663862,1276.8205634,0.00013434,2]
[403022920,1769078663882,1621.9794366,0.00013434,2]
[403022928,1769078870371,-353.65680553,0.0001616,2]
[403022931,1769078959706,-150.0,0.00016129,2]
[403022932,1769078959726,-29.047633,0.0001616,2]
[403022935,1769079004603,-168.22269156,0.0001616,2]
[403022942,1769079031600,-116.77730844,0.0001616,2]
[403022943,1769079031612,-71.90556147,0.0001616,2]
[403022944,1769079031622,-195.0,0.00016217,2]
[403022945,1769079031631,-13.65210748,0.00016274,2]
[403022946,1769079031642,-513.44789252,0.00016274,2]
[403022947,1769079031651,-500.87140334,0.00016404,2]
[403022948,1769079031688,-699.12859666,0.00016404,2]
[403022949,1769079031698,-1061.2,0.00016405,2]
[403022950,1769079031708,-151.0,0.00016405,2]
[403022951,1769079031717,-151.0,0.00016405,2]
[403022952,1769079031726,-151.0,0.00016405,2]
[403022953,1769079031736,-151.0,0.00016405,2]
[403022954,1769079031746,-151.0,0.00016405,2]
[403022955,1769079031755,-500.0,0.00016405,2]
[403022956,1769079031765,-202.29369022,0.00016405,2]
[403022957,1769079031774,-413.80991348,0.00016405,2]
[403022959,1769079031783,-151.0,0.00016405,2]
[403022960,1769079031792,-12.41680728,0.00016405,2]
[403022964,1769079031814,-138.58319272,0.00016405,2]
[403022966,1769079031823,-151.0,0.00016405,2]
[403022968,1769079031832,-151.0,0.00016405,2]
[403022970,1769079031841,-151.0,0.00016405,2]
[403022972,1769079031851,-500.52951477,0.00016405,2]
[403022973,1769079031859,-151.0,0.00016405,2]
[403022975,1769079031869,-151.0,0.00016405,2]
[403022977,1769079031878,-151.0,0.00016405,2]
[403022979,1769079031888,-151.0,0.00016405,2]
[403022981,1769079031897,-151.0,0.00016405,2]
[403022983,1769079031906,-151.0,0.00016405,2]
[403022985,1769079031916,-151.0,0.00016405,2]
[403022986,1769079031925,-9584.71061854,0.00016415,2]
[403022987,1769079031936,-713.32029115,0.00016415,2]
[403022988,1769079031945,-166.66,0.00016516,2]
[403022989,1769079031955,-344.0,0.00016612,2]
[403022990,1769079031964,-1061.2,0.00016679,2]
[403022991,1769079031973,-454.61,0.00016766,2]
[403022992,1769079031982,-151.0,0.00016851,2]
[403022993,1769079031991,-151.0,0.00016852,2]
[403022994,1769079032000,-166.66,0.00016864,2]
[403022995,1769079032009,-1800.0,0.000169,6]
[403022996,1769079032019,-153.2,0.00016911,2]
[403022997,1769079032028,-152.12544444,0.0001694,2]
[403022998,1769079032038,-150.0,0.0001694,2]
[403022999,1769079032047,-201.01276846,0.0001694,2]
[403023000,1769079032057,-150.0,0.0001694,2]
[403023001,1769079032068,-150.0,0.0001694,2]
[403023002,1769079032077,-150.29439122,0.0001694,2]
[403023003,1769079032086,-151.04205624,0.0001694,2]
[403023004,1769079032096,-150.49533801,0.0001694,2]
[403023005,1769079032105,-150.8786932,0.0001694,2]
[403023006,1769079032114,-150.31376427,0.0001694,2]
[403023007,1769079032123,-150.0,0.0001694,2]
[403023008,1769079032133,-150.0,0.0001694,2]
[403023009,1769079032142,-500.0,0.0001694,2]
[403023010,1769079032151,-500.0,0.0001694,2]
[403023011,1769079032160,-500.0,0.0001694,2]
[403023012,1769079032169,-150.0,0.0001694,2]
[403023013,1769079032178,-150.0,0.0001694,2]
[403023014,1769079032187,-150.0,0.0001694,2]
[403023015,1769079032196,-500.0,0.0001694,2]
[403023016,1769079032205,-164.21135863,0.0001694,2]
[403023017,1769079032214,-150.0,0.0001694,2]
[403023018,1769079032224,-500.0,0.0001694,2]
[403023019,1769079032233,-150.0,0.0001694,2]
[403023020,1769079032242,-1061.2,0.00016953,2]
[403023021,1769079032251,-153.2,0.00016963,2]
[403023022,1769079032260,-201.23,0.00016976,2]
[403023023,1769079032270,-150.0,0.00016995,2]
[403023024,1769079032279,-150.0,0.00016995,2]
[403023025,1769079032288,-154.25849627,0.00016995,2]
[403023026,1769079032297,-150.0,0.00016995,2]
[403023027,1769079032306,-500.0,0.00016995,2]
[403023028,1769079032315,-500.0,0.00016995,2]
[403023029,1769079032325,-150.0,0.00016995,2]
[403023030,1769079032334,-500.0,0.00016995,2]
[403023031,1769079032343,-150.0,0.00016995,2]
[403023032,1769079032353,-500.0,0.00016995,2]
[403023033,1769079032362,-150.0,0.00016995,2]
[403023034,1769079032372,-500.0,0.00016995,2]
[403023035,1769079032381,-150.0,0.00016995,2]
[403023036,1769079032390,-153.2,0.00017016,2]
[403023037,1769079032399,-836.0,0.00017036,2]
[403023038,1769079032408,-150.0,0.00017037,2]
[403023039,1769079032417,-1580.96751874,0.0001704,2]
[403023040,1769079032426,-500.0,0.00017041,2]
[403023041,1769079032439,-338.99708355,0.00017041,2]
[403023042,1769079032454,-275.62386321,0.00017041,2]
[403023043,1769079032467,-263.98084228,0.00017041,2]
[403023044,1769079032479,-500.0,0.00017041,2]
[403023045,1769079032489,-6109.93138252,0.00017042,2]
[403023046,1769079032537,-500.0,0.00017041,2]
[403023047,1769079032551,-1431.43592063,0.00017042,2]
[403023048,1769079032597,-453.0,0.00017042,2]
[403023049,1769079037549,-500.0,0.00017041,2]
[403023050,1769079037561,-538.15476465,0.00017041,2]
[403023051,1769079037571,-500.0,0.00017041,2]
[403023052,1769079037582,-500.0,0.00017041,2]
[403023053,1769079037593,-221.65807905,0.00017041,2]
[403023054,1769079037615,-409.63456697,0.00017041,2]
[403023055,1769079037626,-495.18543303,0.00017041,2]
[403023056,1769079037656,-4.81456697,0.00017041,2]
[403023057,1769079037666,-500.0,0.00017041,2]
[403023058,1769079037676,-500.0,0.00017041,2]
[403023059,1769079037685,-500.0,0.00017041,2]
[403023060,1769079037695,-500.0,0.00017041,2]
[403023061,1769079037705,-500.0,0.00017041,2]
[403023062,1769079037715,-500.0,0.00017041,2]
[403023063,1769079037725,-500.0,0.00017041,2]
[403023064,1769079037734,-500.0,0.00017041,2]
[403023065,1769079037744,-500.0,0.00017041,2]
[403023066,1769079037753,-500.0,0.00017041,2]
[403023067,1769079037764,-500.0,0.00017041,2]
[403023068,1769079037773,-500.0,0.00017041,2]
[403023069,1769079037782,-500.0,0.00017041,2]
[403023070,1769079037791,-500.0,0.00017041,2]
[403023071,1769079037801,-500.0,0.00017041,2]
[403023072,1769079037810,-500.0,0.00017041,2]
[403023073,1769079037819,-500.0,0.00017041,2]
[403023075,1769079037828,-500.0,0.00017041,2]
[403023076,1769079037838,-500.0,0.00017041,2]
[403023077,1769079037853,-637.4504776,0.00017041,2]
[403023078,1769079037863,-500.0,0.00017041,2]
[403023080,1769079037872,-500.0,0.00017041,2]
[403023082,1769079037881,-500.0,0.00017041,2]
[403023084,1769079037890,-500.0,0.00017041,2]
[403023086,1769079037900,-500.0,0.00017041,2]
[403023087,1769079037911,-500.0,0.00017041,2]
[403023090,1769079037921,-500.0,0.00017041,2]
[403023092,1769079037930,-714905.10729685,0.00017042,2]
[403023093,1769079037939,-200.0,0.0001705,2]
[403023095,1769079037948,-150.0,0.0001705,2]
[403023097,1769079037957,-500.0,0.0001705,2]
[403023099,1769079037966,-500.0,0.0001705,2]
[403023101,1769079037975,-150.0,0.0001705,2]
[403023103,1769079037984,-500.0,0.0001705,2]
[403023105,1769079037994,-150.0,0.0001705,2]
[403023107,1769079038004,-500.0,0.0001705,2]
[403023109,1769079038013,-205.41720599,0.0001705,2]
[403023111,1769079038023,-200.85753101,0.0001705,2]
[403023114,1769079038037,-150.0,0.0001705,2]
[403023116,1769079038047,-153.2,0.00017069,2]
[403023118,1769079038059,-150.0,0.00017092,2]
[403023120,1769079038070,-500.0,0.00017097,2]
[403023122,1769079038079,-500.0,0.00017097,2]
[403023124,1769079038089,-500.0,0.00017097,2]
[403023126,1769079038099,-500.0,0.00017097,2]
[403023128,1769079038108,-596.95186764,0.00017097,2]
[403023130,1769079038117,-500.0,0.00017097,2]
[403023132,1769079038126,-500.0,0.00017097,2]
[403023134,1769079038137,-342.1996177,0.00017097,2]
[403023136,1769079038146,-500.0,0.00017104,2]
[403023138,1769079038155,-416.0,0.00017104,2]
[403023140,1769079038164,-232.71626821,0.00017104,2]
[403023142,1769079038174,-500.0,0.00017104,2]
[403023144,1769079038183,-150.0,0.00017104,2]
[403023146,1769079038192,-150.0,0.00017104,2]
[403023148,1769079038202,-153.2,0.00017122,2]
[403023150,1769079038212,-340.0,0.00017142,2]
[403023152,1769079038221,-211.68961379,0.00017147,2]
[403023154,1769079038230,-500.0,0.00017159,2]
[403023156,1769079038243,-162.0,0.00017159,2]
[403023158,1769079038254,-150.0,0.00017159,2]
[403023160,1769079038263,-153.2,0.00017175,2]
[403023162,1769079038273,-500.0,0.00017198,2]
[403023164,1769079038282,-500.0,0.00017198,2]
[403023166,1769079038292,-500.0,0.00017198,2]
[403023168,1769079038301,-500.0,0.00017198,2]
[403023170,1769079038310,-1656.655,0.00017212,2]
[403023172,1769079038320,-166.66,0.00017212,2]
[403023173,1769079038329,-500.0,0.00017214,2]
[403023176,1769079038339,-250.0,0.00017214,2]
[403023177,1769079038348,-13154.20692121,0.00017224,2]
[403023180,1769079038358,-205.0,0.00017224,2]
[403023181,1769079038368,-1061.2,0.00017227,2]
[403023183,1769079038378,-153.2,0.00017228,2]
[403023186,1769079038388,-8074.72496751,0.00017233,2]
[403023188,1769079038398,-202.55257862,0.00017233,2]
[403023190,1769079038407,-500.0,0.00017269,2]
[403023191,1769079038417,-153.2,0.0001728,2]
[403023194,1769079038430,-1110.78417922,0.00017311,5]
[403023196,1769079038439,-217.98,0.00017311,2]
[403023198,1769079038449,-516.50754003,0.00017311,2]
[403023200,1769079038458,-500.0,0.00017311,2]
[403023202,1769079038467,-500.0,0.00017311,2]
[403023204,1769079038477,-500.0,0.00017311,2]
[403023206,1769079038487,-368.70990999,0.00017311,2]
[403023208,1769079038496,-150.0,0.00017311,2]
[403023209,1769079038506,-500.0,0.00017324,2]
[403023211,1769079038517,-153.2,0.00017333,2]
[403023213,1769079038527,-500.0,0.00017355,2]
[403023215,1769079038536,-454.61,0.00017372,2]
[403023217,1769079038546,-177.73683657,0.00017378,2]
[403023219,1769079038557,-153.2,0.00017386,2]
[403023222,1769079038566,-249.22843217,0.000174,2]
[403023223,1769079038576,-153.2,0.00017439,2]
[403023225,1769079038585,-153.2,0.00017492,2]
[403023227,1769079038595,-1061.2,0.00017501,2]
[403023229,1769079038604,-153.2,0.00017545,2]
[403023231,1769079038614,-166.66,0.0001756,2]
[403023233,1769079038626,-202.55257861,0.00017563,2]
[403023235,1769079038635,-153.2,0.00017598,2]
[403023237,1769079038645,-153.2,0.0001765,2]
[403023239,1769079038654,-500.0,0.00017673,2]
[403023241,1769079038663,-500.0,0.00017673,2]
[403023243,1769079038672,-343.65136961,0.00017673,2]
[403023245,1769079038682,-500.67754118,0.00017673,2]
[403023247,1769079038692,-500.0,0.00017673,2]
[403023249,1769079038701,-500.0,0.00017673,2]
[403023251,1769079038711,-500.0,0.00017673,2]
[403023253,1769079038720,-500.0,0.00017673,2]
[403023254,1769079038730,-500.0,0.00017673,2]
[403023255,1769079038739,-502.19021569,0.00017673,2]
[403023256,1769079038749,-3600.0,0.000177,6]
[403023257,1769079038759,-153.2,0.00017703,2]
[403023258,1769079038769,-250.0,0.00017745,2]
[403023259,1769079038779,-153.2,0.00017756,2]
[403023260,1769079038788,-1061.2,0.00017775,2]
[403023261,1769079038798,-201.13374682,0.00017776,2]
[403023262,1769079038807,-195.0,0.00017776,2]
[403023263,1769079038818,-250.0,0.00017776,2]
[403023264,1769079038827,-5400.0,0.000178,6]
[403023265,1769079038837,-188.01535975,0.00017827,2]
[403023266,1769079038847,-496.17550907,0.00017827,2]
[403023267,1769079038856,-875.31241156,0.00017827,2]
[403023268,1769079038866,-202.55257861,0.00017893,2]
[403023269,1769079038875,-364.96851402,0.000179,2]
[403023270,1769079038885,-1000.0,0.000179,2]
[403023271,1769079038894,-7200.0,0.000179,6]
[403023272,1769079038904,-193.2322498,0.000179,3]
[403023273,1769079038914,-439.88445026,0.000179,2]
[403023274,1769079038924,-7021.76086564,0.000179,2]
[403023275,1769079038934,-497.6192211,0.000179,2]
[403023276,1769079038943,-250.0,0.00017901,2]
[403023277,1769079038953,-250.0,0.00017901,2]
[403023278,1769079038963,-166.66,0.00017907,2]
[403023279,1769079038972,-15055.0,0.00017973,2]
[403023280,1769079038982,-454.61,0.00017978,2]
[403023281,1769079038991,-500.0,0.0001798,2]
[403023282,1769079039002,-1926.4181119,0.00017983,2]
[403023283,1769079039024,-43354.97053025,0.00017993,2]
[403023284,1769079039033,-1314.1315061,0.00017993,2]
[403023285,1769079039043,-26773.4051732,0.00017993,2]
[403023286,1769079039053,-494312.1777255,0.00017993,2]
[403023287,1769079039068,-99412.7663525,0.00017993,2]
[403023288,1769079039078,-300.0,0.00017999,2]
[403023289,1769079039088,-155.421,0.00017999,2]
[403023290,1769079039098,-500.0,0.00017999,2]
[403023291,1769079039110,-500.0,0.00017999,2]
[403023292,1769079039120,-198.83020825,0.00017999,2]
[403023293,1769079039129,-150.0,0.00017999,2]
[403023294,1769079039139,-802383.08290832,0.00018,2]
[403023295,1769079039149,-69380.48312257,0.00018,2]
[403023296,1769079039159,-957020.59919644,0.00018,2]
[403023297,1769079039168,-200.0,0.00018,2]
[403023298,1769079039178,-200.0,0.00018,2]
[403023299,1769079039187,-151.0,0.00018,2]
[403023300,1769079039198,-151.0,0.00018,2]
[403023301,1769079039207,-151.0,0.00018,2]
[403023302,1769079039217,-151.0,0.00018,2]
[403023303,1769079039227,-151.0,0.00018,2]
[403023304,1769079039237,-151.0,0.00018,2]
[403023305,1769079039247,-179.455776,0.00018,2]
[403023306,1769079039257,-151.0,0.00018,2]
[403023307,1769079039267,-151.0,0.00018,2]
[403023308,1769079039276,-151.0,0.00018,2]
[403023310,1769079039285,-200.0,0.00018,2]
[403023312,1769079039296,-151.0,0.00018,2]
[403023314,1769079039305,-151.0,0.00018,2]
[403023316,1769079039315,-1680.0,0.00018017,2]
[403023318,1769079039325,-1061.2,0.00018049,2]
[403023319,1769079039335,-168.0,0.00018066,2]
[403023320,1769079039346,-8074.72496751,0.00018085,2]
[403023321,1769079039356,-200.0,0.0001818,2]
[403023322,1769079039366,-200.0,0.0001818,2]
[403023323,1769079039377,-200.0,0.0001818,2]
[403023324,1769079039387,-13154.20692119,0.00018184,2]
[403023325,1769079039397,-1001.67447138,0.00018221,2]
[403023326,1769079039407,-854.17894086,0.00018221,2]
[403023327,1769079039417,-1000.0,0.00018221,2]
[403023328,1769079039427,-1000.0,0.00018221,2]
[403023329,1769079039437,-501.64580082,0.00018221,2]
[403023330,1769079039446,-540.54661536,0.00018221,2]
[403023331,1769079039456,-509.50904316,0.00018221,2]
[403023332,1769079039465,-166.66,0.00018255,2]
[403023333,1769079039475,-979.185,0.00018259,2]
[403023334,1769079039485,-527.1,0.00018308,2]
[403023335,1769079039494,-1061.2,0.00018323,2]
[403023336,1769079039504,-200.0,0.00018362,2]
[403023337,1769079039513,-1332.0,0.00018381,2]
[403023338,1769079039524,-3474.0,0.00018381,2]
[403023339,1769079039533,-615.979,0.00018381,2]
[403023340,1769079039546,-1407.0,0.00018381,2]
[403023341,1769079039557,-276.0,0.00018381,2]
[403023342,1769079039568,-1268.0,0.00018381,2]
[403023343,1769079039579,-941.776,0.00018381,2]
[403023344,1769079039589,-6565.0,0.00018381,2]
[403023346,1769079039599,-2441.0,0.00018381,2]
[403023347,1769079039611,-567.0,0.00018381,2]
[403023348,1769079039622,-168.0,0.00018519,2]
[403023349,1769079039633,-615.93,0.00018534,2]
[403023350,1769079039643,-168.0,0.00018542,2]
[403023351,1769079039653,-176.58,0.00018572,2]
[403023352,1769079039662,-454.61,0.00018584,2]
[403023353,1769079039672,-1061.2,0.00018597,2]
[403023354,1769079039682,-1032.1262,0.0001873,2]
[403023355,1769079039692,-1032.12619,0.0001873,2]
[403023356,1769079039702,-1032.1262,0.0001873,2]
[403023357,1769079039712,-1032.12619,0.0001875,2]
[403023358,1769079039722,-1032.12619,0.0001875,2]
[403023359,1769079039731,-1032.1262,0.0001875,2]
[403023360,1769079039742,-1500.0,0.00018768,2]
[403023361,1769079039752,-1500.0,0.00018768,2]
[403023362,1769079039762,-151.3,0.000188,2]
[403023363,1769079039772,-151.3,0.000188,2]
[403023364,1769079039782,-151.3,0.000188,2]
[403023365,1769079039792,-151.3,0.000188,2]
[403023366,1769079039802,-151.3,0.000188,2]
[403023367,1769079039813,-151.3,0.000188,2]
[403023368,1769079039825,-151.3,0.000188,2]
[403023369,1769079039835,-151.3,0.000188,2]
[403023370,1769079039845,-151.3,0.000188,2]
[403023371,1769079039854,-151.3,0.000188,2]
[403023372,1769079039864,-151.3,0.000188,2]
[403023373,1769079039874,-151.3,0.000188,2]
[403023374,1769079039883,-151.3,0.000188,2]
[403023375,1769079039893,-151.3,0.000188,2]
[403023376,1769079039903,-151.3,0.000188,2]
[403023377,1769079039913,-151.3,0.000188,2]
[403023378,1769079039927,-151.3,0.000188,2]
[403023379,1769079039938,-151.3,0.000188,2]
[403023380,1769079039947,-151.3,0.000188,2]
[403023381,1769079039957,-151.3,0.000188,2]
[403023382,1769079039967,-151.3,0.000188,2]
[403023383,1769079039977,-151.3,0.000188,2]
[403023384,1769079039987,-151.3,0.000188,2]
[403023385,1769079039997,-151.3,0.000188,2]
[403023386,1769079040006,-151.0,0.00018842,2]
[403023387,1769079040016,-151.0,0.00018842,2]
[403023388,1769079040026,-151.0,0.00018842,2]
[403023389,1769079040038,-151.0,0.00018842,2]
[403023390,1769079040047,-151.0,0.00018842,2]
[403023391,1769079040061,-151.0,0.00018842,2]
[403023393,1769079040074,-151.0,0.00018842,2]
[403023396,1769079040343,-151.0,0.00018842,2]
[403023397,1769079040367,-151.0,0.00018842,2]
[403023398,1769079040377,-151.0,0.00018842,2]
[403023399,1769079040392,-151.0,0.00018842,2]
[403023400,1769079040402,-151.0,0.00018842,2]
[403023401,1769079040413,-151.0,0.00018842,2]
[403023402,1769079040421,-151.0,0.00018842,2]
[403023403,1769079040431,-151.0,0.00018842,2]
[403023404,1769079040440,-151.0,0.00018842,2]
[403023405,1769079040449,-151.0,0.00018842,2]
[403023406,1769079040458,-151.0,0.00018842,2]
[403023407,1769079040467,-151.0,0.00018842,2]
[403023408,1769079040476,-151.0,0.00018842,2]
[403023409,1769079040486,-151.0,0.00018842,2]
[403023410,1769079040495,-151.0,0.00018842,2]
[403023411,1769079040504,-151.0,0.00018842,2]
[403023412,1769079040513,-151.0,0.00018842,2]
[403023413,1769079040523,-151.0,0.00018842,2]
[403023414,1769079040532,-151.0,0.00018842,2]
[403023415,1769079040541,-151.0,0.00018842,2]
[403023416,1769079040551,-164.13147686,0.00018842,2]
[403023417,1769079040560,-1265.0,0.00018842,2]
[403023418,1769079040569,-151.0,0.00018842,2]
[403023419,1769079040579,-151.0,0.00018842,2]
[403023420,1769079040588,-1265.0,0.00018842,2]
[403023421,1769079040601,-151.0,0.00018842,2]
[403023422,1769079040611,-151.0,0.00018842,2]
[403023423,1769079040620,-1265.0,0.00018842,2]
[403023424,1769079040630,-151.0,0.00018842,2]
[403023425,1769079040639,-1265.0,0.00018842,2]
[403023426,1769079040648,-1265.0,0.00018842,2]
[403023427,1769079040657,-1265.0,0.00018842,2]
[403023428,1769079040667,-1265.0,0.00018842,2]
[403023429,1769079040677,-253.08537508,0.00018842,2]
[403023430,1769079040687,-151.0,0.00018842,2]
[403023431,1769079040696,-1061.2,0.00018871,2]
[403023432,1769079040705,-150.81524873,0.000189,2]
[403023433,1769079040715,-8074.72496751,0.00018937,2]
[403023434,1769079040727,-239.0,0.00018939,2]
[403023435,1769079040736,-239.0,0.00018955,2]
[403023436,1769079040745,-5166.25962011,0.00019,2]
[403023437,1769079040756,-166.66,0.00019001,2]
[403023438,1769079040767,-168.0,0.0001903,2]
[403023439,1769079040776,-239.0,0.00019054,2]
[403023440,1769079040788,-200.39976832,0.00019082,2]
[403023441,1769079040798,-168.0,0.00019086,2]
[403023442,1769079040809,-921.0,0.000191,2]
[403023443,1769079040818,-913.0,0.000191,2]
[403023444,1769079040827,-981.0,0.000191,2]
[403023445,1769079040837,-151.3,0.00019135,2]
[403023446,1769079040846,-13154.20692119,0.00019145,2]
[403023447,1769079040857,-1061.2,0.00019145,2]
[403023448,1769079040867,-239.0,0.00019163,2]
[403023449,1769079040877,-239.0,0.00019171,2]
[403023450,1769079040888,-500.0,0.00019178,2]
[403023451,1769079040898,-500.0,0.00019178,2]
[403023452,1769079040907,-500.0,0.00019178,2]
[403023453,1769079040916,-500.0,0.00019178,2]
[403023454,1769079040925,-500.0,0.00019178,2]
[403023455,1769079040935,-500.0,0.00019178,2]
[403023456,1769079040944,-500.0,0.00019178,2]
[403023457,1769079040955,-500.0,0.00019178,2]
[403023458,1769079040965,-500.0,0.00019178,2]
[403023459,1769079040978,-500.0,0.00019178,2]
[403023460,1769079040988,-463.44846878,0.00019178,2]
[403023461,1769079040998,-150.33,0.00019178,30]
[403023462,1769079041008,-151.0,0.00019178,2]
[403023463,1769079041018,-151.0,0.00019178,2]
[403023464,1769079041027,-573.952439,0.00019178,2]
[403023465,1769079041037,-573.952439,0.00019178,2]
[403023466,1769079041046,-573.952439,0.00019178,2]
[403023467,1769079041060,-573.952439,0.00019178,2]
[403023468,1769079041070,-573.952439,0.00019178,2]
[403023469,1769079041080,-573.952439,0.00019178,2]
[403023470,1769079041092,-573.952439,0.00019178,2]
[403023471,1769079041103,-573.952439,0.00019178,2]
[403023472,1769079041112,-155.962319,0.00019178,2]
[403023473,1769079041122,-239.0,0.00019223,2]
[403023474,1769079041133,-168.0,0.00019254,2]
[403023475,1769079041143,-239.0,0.00019271,2]
[403023476,1769079041153,-2000.0,0.00019316,2]
[403023477,1769079041162,-1496.38900777,0.00019316,2]
[403023478,1769079041172,-1309.4150187,0.00019327,2]
[403023479,1769079041182,-9000.0,0.00019386,2]
[403023480,1769079041192,-174.61919141,0.00019386,2]
[403023481,1769079041202,-6327.94060004,0.00019386,2]
[403023482,1769079041211,-250.0,0.00019386,2]
[403023483,1769079041220,-250.0,0.00019386,2]
[403023484,1769079041230,-500.0,0.00019386,2]